fUSD/lending_fUSD_20240214
["ID","MTS","AMOUNT","RATE_DAILY","PERIOD"]
[314007134,1707923460724,-1122.77,0.00036986,2]
[314007135,1707923460733,-3238.15,0.00036986,2]
[314007136,1707923460743,-1486.36,0.00036986,2]
[314007137,1707923460753,-500.0,0.00036986,2]
[314007138,1707923460762,-500.0,0.00036986,2]
[314007139,1707923460772,-805.46,0.00036986,2]
[314007140,1707923460781,-500.0,0.00036986,2]
[314007141,1707923460791,-500.0,0.00036986,2]
[314007142,1707923460801,-5897.47,0.00036986,2]
[314007143,1707923460811,-502.69346134,0.00036986,2]
[314007144,1707923460822,-500.0,0.00036986,2]
[314007145,1707923460832,-664.49,0.00036986,2]
[314007146,1707923460842,-1313.77,0.00036986,2]
[314007147,1707923460852,-500.0,0.00036986,2]
[314007148,1707923460863,-500.0,0.00036986,2]
[314007149,1707923460878,-574.19,0.00036986,2]
[314007150,1707923460888,-500.0,0.00036986,2]
[314007151,1707923460898,-500.0,0.00036986,2]
[314007152,1707923460908,-500.0,0.00036986,2]
[314007153,1707923460918,-500.0,0.00036986,2]
[314007154,1707923460928,-11522.74,0.00036986,2]
[314007155,1707923460938,-500.0,0.00036986,2]
[314007156,1707923460947,-1290.94,0.00036986,2]
[314007157,1707923460958,-1511.05,0.00036986,2]
[314007158,1707923460968,-520.12,0.00036986,2]
[314007159,1707923460978,-500.0,0.00036986,2]
[314007160,1707923460990,-6267.83,0.00036986,2]
[314007161,1707923461000,-207.38494352,0.00036986,2]
[314007162,1707923461010,-879.95,0.00036986,2]
[314007163,1707923461020,-500.0,0.00036986,2]
[314007164,1707923461030,-506.81850153,0.00036986,2]
[314007165,1707923461041,-763.78,0.00036986,2]
[314007166,1707923461050,-2830.38,0.00036986,2]
[314007167,1707923461062,-626.07,0.00036986,2]
[314007168,1707923461073,-1371.91,0.00036986,2]
[314007169,1707923461083,-500.0,0.00036986,2]
[314007170,1707923461092,-500.0,0.00036986,2]
[314007171,1707923461102,-500.0,0.00036986,2]
[314007172,1707923461113,-4425.6,0.00036986,2]
[314007173,1707923461128,-500.0,0.00036986,2]
[314007174,1707923461138,-986.33,0.00036986,2]
[314007175,1707923461147,-500.0,0.00036986,2]
[314007176,1707923461157,-500.0,0.00036986,2]
[314007177,1707923461166,-500.0,0.00036986,2]
[314007178,1707923461175,-45639.2,0.00036986,2]
[314007179,1707923461184,-500.0,0.00036986,2]
[314007180,1707923461194,-5389.09,0.00036986,2]
[314007181,1707923461203,-1240.03,0.00036986,2]
[314007182,1707923461212,-500.0,0.00036986,2]
[314007183,1707923461221,-500.0,0.00036986,2]
[314007184,1707923461231,-4636.49,0.00036986,2]
[314007185,1707923461240,-500.0,0.00036986,2]
[314007186,1707923461250,-558.68,0.00036986,2]
[314007187,1707923461259,-500.0,0.00036986,2]
[314007188,1707923461269,-1060.11,0.00036986,2]
[314007189,1707923461278,-500.0,0.00036986,2]
[314007190,1707923461289,-5227.83,0.00036986,2]
[314007191,1707923461298,-500.0,0.00036986,2]
[314007192,1707923461308,-525.56,0.00036986,2]
[314007193,1707923461317,-2461.93,0.00036986,2]
[314007194,1707923461327,-500.0,0.00036986,2]
[314007195,1707923461336,-682.43,0.00036986,2]
[314007196,1707923461346,-1031.1,0.00036986,2]
[314007197,1707923461355,-3757.3,0.00036986,2]
[314007198,1707923461365,-741.06,0.00036986,2]
[314007199,1707923461377,-500.0,0.00036986,2]
[314007200,1707923461387,-777.41,0.00036986,2]
[314007201,1707923461397,-500.0,0.00036986,2]
[314007202,1707923461406,-838.79,0.00036986,2]
[314007203,1707923461416,-1479.6,0.00036986,2]
[314007204,1707923461426,-866.09,0.00036986,2]
[314007205,1707923461436,-8419.92,0.00036986,2]
[314007206,1707923461446,-3315.92,0.00036986,2]
[314007207,1707923461457,-500.0,0.00036986,2]
[314007208,1707923461467,-500.0,0.00036986,2]
[314007209,1707923461478,-1669.6,0.00036986,2]
[314007210,1707923461488,-941.92,0.00036986,2]
[314007211,1707923461568,-500.0,0.00036986,2]
[314007212,1707923461579,-500.0,0.00036986,2]
[314007213,1707923461590,-500.0,0.00036986,2]
[314007214,1707923461600,-1425.19,0.00036986,2]
[314007215,1707923461610,-500.0,0.00036986,2]
[314007216,1707923461622,-500.0,0.00036986,2]
[314007217,1707923461631,-1068.3,0.00036986,2]
[314007218,1707923461642,-978.39,0.00036986,2]
[314007219,1707923461652,-500.0,0.00036986,2]
[314007220,1707923461663,-1743.01,0.00036986,2]
[314007221,1707923461673,-500.0,0.00036986,2]
[314007222,1707923461684,-500.0,0.00036986,2]
[314007223,1707923461694,-527.53,0.00036986,2]
[314007224,1707923461705,-16404.96,0.00036986,2]
[314007225,1707923461715,-5014.41,0.00036986,2]
[314007226,1707923461726,-2618.16,0.00036986,2]
[314007227,1707923461737,-150.0,0.00036986,2]
[314007228,1707923461747,-1253.74,0.00036986,2]
[314007229,1707923461757,-1428.29,0.00036986,2]
[314007230,1707923461767,-12919.21,0.00036986,2]
[314007231,1707923461777,-500.0,0.00036986,2]
[314007232,1707923461787,-725.51,0.00036986,2]
[314007233,1707923461797,-500.0,0.00036986,2]
[314007234,1707923461807,-608.21,0.00036986,2]
[314007235,1707923461817,-670.32,0.00036986,2]
[314007236,1707923461827,-564.17,0.00036986,2]
[314007237,1707923461838,-3982.22,0.00036986,2]
[314007238,1707923461848,-500.0,0.00036986,2]
[314007239,1707923461858,-15886.12,0.00036986,2]
[314007240,1707923461871,-1912.2,0.00036986,2]
[314007241,1707923461881,-10000.0,0.00036986,2]
[314007242,1707923461892,-2293.57,0.00036986,2]
[314007243,1707923461902,-1078.52,0.00036986,2]
[314007244,1707923461912,-500.0,0.00036986,2]
[314007245,1707923461922,-1675.86,0.00036986,2]
[314007246,1707923461932,-4682.24,0.00036986,2]
[314007247,1707923461942,-998.25,0.00036986,2]
[314007248,1707923461952,-1548.99,0.00036986,2]
[314007249,1707923461961,-500.0,0.00036986,2]
[314007250,1707923461970,-10000.0,0.00036986,2]
[314007251,1707923461982,-2172.47,0.00036986,2]
[314007252,1707923461994,-1678.3,0.00036986,2]
[314007253,1707923462005,-500.0,0.00036986,2]
[314007254,1707923462014,-4636.94,0.00036986,2]
[314007255,1707923462024,-500.0,0.00036986,2]
[314007256,1707923462033,-905.58,0.00036986,2]
[314007257,1707923462042,-3347.59,0.00036986,2]
[314007258,1707923462051,-24853.72,0.00036986,2]
[314007259,1707923462061,-2682.03,0.00036986,2]
[314007260,1707923462072,-500.0,0.00036986,2]
[314007261,1707923462082,-500.0,0.00036986,2]
[314007262,1707923462092,-500.0,0.00036986,2]
[314007263,1707923462101,-741.23,0.00036986,2]
[314007264,1707923462110,-500.0,0.00036986,2]
[314007265,1707923462121,-4661.42,0.00036986,2]
[314007266,1707923462131,-504.17,0.00036986,2]
[314007267,1707923462140,-644.02,0.00036986,2]
[314007268,1707923462150,-1447.91,0.00036986,2]
[314007269,1707923462159,-870.17,0.00036986,2]
[314007270,1707923462168,-575.73,0.00036986,2]
[314007271,1707923462177,-6063.47,0.00036986,2]
[314007272,1707923462186,-513.51,0.00036986,2]
[314007273,1707923462196,-500.0,0.00036986,2]
[314007274,1707923462205,-13772.64,0.00036986,2]
[314007275,1707923462214,-861.53,0.00036986,2]
[314007276,1707923462223,-734.67,0.00036986,2]
[314007277,1707923462234,-4015.51,0.00036986,2]
[314007278,1707923462243,-4963.65,0.00036986,2]
[314007279,1707923462252,-1647.66,0.00036986,2]
[314007280,1707923462261,-500.0,0.00036986,2]
[314007281,1707923462270,-834.17,0.00036986,2]
[314007282,1707923462280,-1651.62,0.00036986,2]
[314007283,1707923462290,-543.17270438,0.00036986,2]
[314007284,1707923462300,-1367.71,0.00036986,2]
[314007285,1707923462309,-738.43,0.00036986,2]
[314007286,1707923462319,-705.01,0.00036986,2]
[314007287,1707923462330,-1000.0,0.00036986,2]
[314007288,1707923462341,-1232.76,0.00036986,2]
[314007289,1707923462351,-1397.98,0.00036986,2]
[314007290,1707923462360,-500.0,0.00036986,2]
[314007291,1707923462375,-2624.93,0.00036986,2]
[314007292,1707923462386,-1605.94,0.00036986,7]
[314007293,1707923462396,-3882.2,0.00036986,2]
[314007294,1707923462407,-6303.05,0.00036986,2]
[314007295,1707923462418,-1424.26,0.00036986,2]
[314007296,1707923462430,-6722.84,0.00036986,2]
[314007297,1707923462440,-6796.38,0.00036986,2]
[314007298,1707923462450,-500.0,0.00036986,2]
[314007299,1707923462459,-9115.46,0.00036986,2]
[314007300,1707923462469,-1430.04,0.00036986,2]
[314007301,1707923462479,-876.71,0.00036986,2]
[314007302,1707923462489,-500.0,0.00036986,2]
[314007303,1707923462498,-500.0,0.00036986,2]
[314007304,1707923462510,-1566.04,0.00036986,2]
[314007305,1707923462519,-1159.69,0.00036986,2]
[314007306,1707923462529,-5625.73,0.00036986,2]
[314007307,1707923462539,-742.15,0.00036986,2]
[314007308,1707923462550,-500.0,0.00036986,2]
[314007309,1707923462559,-1074.84,0.00036986,2]
[314007310,1707923462570,-500.0,0.00036986,2]
[314007311,1707923462581,-500.0,0.00036986,2]
[314007312,1707923462591,-250.27749776,0.00036986,2]
[314007313,1707923462601,-21955.42,0.00036986,2]
[314007314,1707923462612,-10536.73,0.00036986,2]
[314007315,1707923462627,-1224.55,0.00036986,2]
[314007316,1707923462638,-3349.17,0.00036986,2]
[314007317,1707923462648,-1141.82,0.00036986,2]
[314007318,1707923462658,-4103.23,0.00036986,2]
[314007319,1707923462668,-15646.43,0.00036986,2]
[314007320,1707923462678,-500.0,0.00036986,2]
[314007321,1707923462687,-580.0,0.00036986,2]
[314007322,1707923462697,-500.0,0.00036986,2]
[314007323,1707923462707,-888.9,0.00036986,2]
[314007324,1707923462716,-849.7,0.00036986,2]
[314007325,1707923462726,-1131.16,0.00036986,2]
[314007326,1707923462735,-500.0,0.00036986,2]
[314007327,1707923462745,-500.0,0.00036986,2]
[314007328,1707923462754,-970.39,0.00036986,2]
[314007329,1707923462764,-2458.64,0.00036986,2]
[314007330,1707923462774,-1032.81,0.00036986,2]
[314007331,1707923462784,-940.22,0.00036986,2]
[314007332,1707923462793,-845.63,0.00036986,2]
[314007333,1707923462803,-655.93,0.00036986,2]
[314007334,1707923462813,-2020.71,0.00036986,2]
[314007335,1707923462822,-861.05,0.00036986,2]
[314007336,1707923462832,-1868.07,0.00036986,2]
[314007337,1707923462843,-4353.77,0.00036986,2]
[314007338,1707923462853,-500.0,0.00036986,2]
[314007339,1707923462863,-500.0,0.00036986,2]
[314007340,1707923462878,-2136.24,0.00036986,2]
[314007341,1707923462888,-500.0,0.00036986,2]
[314007342,1707923462899,-3468.32,0.00036986,2]
[314007343,1707923462909,-500.0,0.00036986,2]
[314007344,1707923462920,-1175.69,0.00036986,2]
[314007345,1707923462930,-4307.44,0.00036986,2]
[314007346,1707923462941,-500.0,0.00036986,2]
[314007347,1707923462952,-500.0,0.00036986,2]
[314007348,1707923462963,-500.0,0.00036986,2]
[314007349,1707923462974,-2131.96,0.00036986,2]
[314007350,1707923462984,-4133.28,0.00036986,2]
[314007351,1707923463001,-500.0,0.00036986,2]
[314007352,1707923463011,-1428.62,0.00036986,2]
[314007353,1707923463022,-500.0,0.00036986,2]
[314007354,1707923463032,-3754.14,0.00036986,7]
[314007355,1707923463042,-551.94,0.00036986,2]
[314007356,1707923463052,-2643.73,0.00036986,2]
[314007357,1707923463063,-1200.28,0.00036986,2]
[314007358,1707923463074,-1293.93,0.00036986,2]
[314007359,1707923463085,-500.0,0.00036986,2]
[314007360,1707923463095,-4255.94,0.00036986,2]
[314007361,1707923463104,-500.0,0.00036986,2]
[314007362,1707923463115,-500.0,0.00036986,2]
[314007363,1707923463130,-1073.43,0.00036986,2]
[314007364,1707923463140,-1154.7,0.00036986,2]
[314007365,1707923463150,-500.0,0.00036986,2]
[314007366,1707923463160,-749.27,0.00036986,2]
[314007367,1707923463170,-1681.08,0.00036986,2]
[314007368,1707923463180,-696.07,0.00036986,2]
[314007369,1707923463190,-1992.67,0.00036986,2]
[314007370,1707923463199,-4598.11,0.00036986,2]
[314007371,1707923463210,-1960.66,0.00036986,2]
[314007372,1707923463220,-2148.61,0.00036986,2]
[314007373,1707923463230,-907.63,0.00036986,2]
[314007374,1707923463240,-500.0,0.00036986,2]
[314007375,1707923463250,-776.5,0.00036986,2]
[314007376,1707923463259,-248.51966754,0.00036986,2]
[314007377,1707923463269,-876.47,0.00036986,2]
[314007378,1707923463279,-500.0,0.00036986,2]
[314007379,1707923463289,-1863.83,0.00036986,2]
[314007380,1707923463299,-759.83,0.00036986,2]
[314007381,1707923463308,-2233.48,0.00036986,2]
[314007382,1707923463317,-22229.37,0.00036986,2]
[314007383,1707923463327,-1407.78,0.00036986,2]
[314007384,1707923463337,-2807.7,0.00036986,2]
[314007385,1707923463346,-500.0,0.00036986,2]
[314007386,1707923463355,-4409.87,0.00036986,2]
[314007387,1707923463365,-749.48,0.00036986,2]
[314007388,1707923463379,-770.43,0.00036986,2]
[314007389,1707923463389,-500.0,0.00036986,2]
[314007390,1707923463398,-500.0,0.00036986,2]
[314007391,1707923463407,-940.66,0.00036986,2]
[314007392,1707923463416,-500.0,0.00036986,2]
[314007393,1707923463425,-1582.96,0.00036986,2]
[314007394,1707923463435,-778.24,0.00036986,2]
[314007395,1707923463444,-500.0,0.00036986,2]
[314007396,1707923463453,-819.98,0.00036986,2]
[314007397,1707923463462,-501.61,0.00036986,2]
[314007398,1707923463471,-625.84129643,0.00036986,2]
[314007399,1707923463480,-1689.02,0.00036986,2]
[314007400,1707923463490,-457.84,0.00036986,2]
[314007401,1707923463499,-9683.34,0.00036986,2]
[314007402,1707923463509,-500.0,0.00036999,2]
[314007403,1707923463518,-100000.0,0.00037,17]
[314007404,1707923463527,-6015.11054132,0.00037,3]
[314007405,1707923463537,-4219.54703542,0.00037,14]
[314007406,1707923463546,-66024.29903548,0.00037,7]
[314007407,1707923463556,-200.0,0.00037,10]
[314007408,1707923463566,-4000.0,0.00037,2]
[314007409,1707923463576,-24823.09253658,0.00037011,2]
[314007410,1707923463586,-1046.9721225,0.00037023,9]
[314007411,1707923463596,-422.25,0.0003703,2]
[314007412,1707923463606,-150.0,0.0003703,2]
[314007413,1707923463616,-150.0,0.00037035,2]
[314007414,1707923463628,-152.09,0.00037066,2]
[314007415,1707923463637,-155.0,0.0003707,2]
[314007416,1707923463648,-6000.01,0.00037075,2]
[314007417,1707923463658,-3547.57525411,0.00037111,2]
[314007418,1707923463667,-300.0,0.000372,2]
[314007419,1707923463677,-153.69,0.000372,3]
[314007420,1707923463689,-153.69,0.000372,3]
[314007421,1707923463700,-153.69,0.000372,3]
[314007422,1707923463711,-153.69,0.000372,3]
[314007423,1707923463721,-153.69,0.000372,3]
[314007424,1707923463732,-153.69,0.000372,3]
[314007425,1707923463742,-153.69,0.000372,3]
[314007426,1707923463752,-153.69,0.000372,3]
[314007427,1707923463762,-150.0,0.00037211,2]
[314007428,1707923463773,-150.0,0.00037227,2]
[314007429,1707923463783,-1400.0,0.00037244,7]
[314007430,1707923463793,-303.701,0.00037244,7]
[314007431,1707923463803,-150.0,0.00037244,7]
[314007432,1707923463814,-300.0,0.00037244,2]
[314007433,1707923463824,-45709.0,0.0003725,4]
[314007434,1707923463834,-164852.2826571,0.00037256,2]
[314007435,1707923463845,-5305.4273103,0.00037256,2]
[314007436,1707923463855,-500.0,0.00037259,2]
[314007437,1707923463866,-500.0,0.00037259,2]
[314007438,1707923463882,-500.0,0.00037259,2]
[314007439,1707923463892,-150.0,0.00037259,2]
[314007440,1707923463903,-150.0,0.00037259,2]
[314007441,1707923463913,-150.0,0.00037259,30]
[314007442,1707923463922,-500.0,0.0003726,2]
[314007443,1707923463932,-500.0,0.0003726,2]
[314007444,1707923463942,-500.0,0.0003726,2]
[314007445,1707923463953,-250.0,0.0003726,2]
[314007446,1707923463962,-500.0,0.0003726,2]
[314007447,1707923463972,-500.0,0.0003726,2]
[314007448,1707923463981,-500.0,0.0003726,2]
[314007449,1707923463995,-500.0,0.0003726,2]
[314007450,1707923464005,-500.0,0.0003726,2]
[314007451,1707923464017,-500.0,0.0003726,2]
[314007452,1707923464026,-500.0,0.0003726,2]
[314007453,1707923464036,-573.14100386,0.0003726,2]
[314007454,1707923464046,-500.0,0.0003726,2]
[314007455,1707923464057,-500.0,0.0003726,2]
[314007456,1707923464068,-304.01686374,0.0003726,2]
[314007457,1707923464079,-641.71000873,0.0003726,2]
[314007458,1707923464088,-500.0,0.0003726,2]
[314007459,1707923464099,-500.0,0.0003726,2]
[314007460,1707923464109,-500.0,0.0003726,2]
[314007461,1707923464125,-500.0,0.0003726,2]
[314007462,1707923464135,-500.0,0.0003726,2]
[314007463,1707923464145,-500.0,0.0003726,2]
[314007464,1707923464155,-500.0,0.0003726,2]
[314007465,1707923464165,-500.0,0.0003726,2]
[314007466,1707923464175,-500.0,0.0003726,2]
[314007467,1707923464185,-636.47,0.0003726,2]
[314007468,1707923464195,-500.0,0.0003726,2]
[314007469,1707923464205,-500.0,0.0003726,2]
[314007470,1707923464215,-500.0,0.0003726,2]
[314007471,1707923464225,-500.0,0.0003726,2]
[314007472,1707923464235,-500.0,0.0003726,2]
[314007473,1707923464244,-500.0,0.0003726,2]
[314007474,1707923464255,-500.0,0.0003726,2]
[314007475,1707923464264,-500.0,0.0003726,2]
[314007476,1707923464275,-500.0,0.0003726,2]
[314007477,1707923464286,-500.0,0.0003726,2]
[314007478,1707923464295,-500.0,0.0003726,2]
[314007479,1707923464305,-332.55495754,0.0003726,2]
[314007480,1707923464316,-500.0,0.0003726,2]
[314007481,1707923464326,-500.0,0.0003726,2]
[314007482,1707923464337,-500.0,0.0003726,2]
[314007483,1707923464347,-1000.0,0.0003726,2]
[314007484,1707923464357,-500.0,0.0003726,2]
[314007485,1707923464370,-500.0,0.0003726,2]
[314007486,1707923464383,-500.0,0.0003726,2]
[314007487,1707923464394,-500.0,0.0003726,2]
[314007488,1707923464405,-500.0,0.0003726,2]
[314007489,1707923464415,-500.0,0.0003726,2]
[314007490,1707923464426,-500.0,0.0003726,2]
[314007491,1707923464436,-500.0,0.0003726,2]
[314007492,1707923464446,-500.0,0.0003726,2]
[314007493,1707923464457,-500.0,0.0003726,2]
[314007494,1707923464467,-261.42,0.0003726,2]
[314007495,1707923464477,-500.0,0.0003726,2]
[314007496,1707923464487,-536.83,0.0003726,2]
[314007497,1707923464497,-306.67734568,0.0003726,2]
[314007498,1707923464507,-500.0,0.0003726,2]
[314007499,1707923464517,-500.0,0.0003726,2]
[314007500,1707923464527,-1030.58,0.0003726,2]
[314007501,1707923464537,-500.0,0.0003726,2]
[314007502,1707923464548,-500.0,0.0003726,2]
[314007503,1707923464559,-500.0,0.0003726,2]
[314007504,1707923464570,-511.55,0.0003726,2]
[314007505,1707923464579,-500.0,0.0003726,2]
[314007506,1707923464590,-500.0,0.0003726,2]
[314007507,1707923464600,-564.0,0.0003726,2]
[314007508,1707923464610,-500.0,0.0003726,2]
[314007509,1707923464625,-524.36444717,0.0003726,2]
[314007510,1707923464635,-500.0,0.0003726,2]
[314007511,1707923464645,-500.0,0.0003726,2]
[314007512,1707923464655,-500.0,0.0003726,2]
[314007513,1707923464665,-500.0,0.0003726,2]
[314007514,1707923464675,-1240.83,0.0003726,2]
[314007515,1707923464684,-500.0,0.0003726,2]
[314007516,1707923464694,-500.0,0.0003726,2]
[314007517,1707923464704,-1171.11,0.0003726,2]
[314007518,1707923464714,-508.31,0.0003726,2]
[314007519,1707923464724,-564.08,0.0003726,2]
[314007520,1707923464733,-1281.17,0.0003726,2]
[314007521,1707923464744,-1147.23,0.0003726,2]
[314007522,1707923464754,-500.0,0.0003726,2]
[314007523,1707923464763,-568.35,0.0003726,2]
[314007524,1707923464773,-500.0,0.0003726,2]
[314007525,1707923464782,-1433.14,0.0003726,2]
[314007526,1707923464792,-500.0,0.0003726,2]
[314007527,1707923464802,-500.0,0.0003726,2]
[314007528,1707923464811,-500.0,0.0003726,2]
[314007529,1707923464822,-500.0,0.0003726,2]
[314007530,1707923464833,-500.0,0.0003726,2]
[314007531,1707923464843,-500.0,0.0003726,2]
[314007532,1707923464854,-530.02,0.0003726,2]
[314007533,1707923464865,-500.0,0.0003726,2]
[314007534,1707923464881,-500.0,0.0003726,2]
[314007535,1707923464891,-528.29,0.0003726,2]
[314007536,1707923464901,-1489.83,0.0003726,2]
[314007537,1707923464911,-500.0,0.0003726,2]
[314007538,1707923464922,-1024.97,0.0003726,2]
[314007539,1707923464932,-500.0,0.0003726,2]
[314007540,1707923464942,-285.78,0.0003726,2]
[314007541,1707923464954,-500.0,0.0003726,2]
[314007542,1707923464964,-500.0,0.0003726,2]
[314007543,1707923464974,-500.0,0.0003726,2]
[314007544,1707923464983,-500.0,0.0003726,2]
[314007545,1707923464994,-500.0,0.0003726,2]
[314007546,1707923465005,-569.56,0.0003726,2]
[314007547,1707923465015,-500.0,0.0003726,2]
[314007548,1707923465025,-538.68,0.0003726,2]
[314007549,1707923465035,-500.0,0.0003726,2]
[314007550,1707923465046,-1152.13,0.0003726,2]
[314007551,1707923465056,-785.09,0.0003726,2]
[314007552,1707923465066,-500.0,0.0003726,2]
[314007553,1707923465079,-1376.22,0.0003726,2]
[314007554,1707923465090,-500.0,0.0003726,2]
[314007555,1707923465101,-500.0,0.0003726,2]
[314007556,1707923465111,-500.0,0.0003726,2]
[314007557,1707923465127,-770.95,0.0003726,2]
[314007558,1707923465136,-500.0,0.0003726,2]
[314007559,1707923465147,-1599.92,0.0003726,2]
[314007560,1707923465157,-1153.23,0.0003726,2]
[314007561,1707923465168,-500.0,0.0003726,2]
[314007562,1707923465179,-1045.09,0.0003726,2]
[314007563,1707923465189,-774.56,0.0003726,2]
[314007564,1707923465200,-1031.35,0.0003726,2]
[314007565,1707923465211,-548.76,0.0003726,2]
[314007566,1707923465222,-500.0,0.0003726,2]
[314007567,1707923465233,-500.0,0.0003726,2]
[314007568,1707923465243,-661.87,0.0003726,2]
[314007569,1707923465254,-584.37,0.0003726,2]
[314007570,1707923465264,-500.0,0.0003726,2]
[314007571,1707923465274,-500.0,0.0003726,2]
[314007572,1707923465284,-520.1,0.0003726,2]
[314007573,1707923465294,-1604.0,0.0003726,2]
[314007574,1707923465304,-943.16,0.0003726,2]
[314007575,1707923465314,-500.0,0.0003726,2]
[314007576,1707923465325,-500.0,0.0003726,2]
[314007577,1707923465335,-500.0,0.0003726,2]
[314007578,1707923465345,-704.7,0.0003726,2]
[314007579,1707923465355,-644.22,0.0003726,2]
[314007580,1707923465365,-1264.92,0.0003726,2]
[314007581,1707923465381,-500.0,0.0003726,2]
[314007582,1707923465391,-1136.26,0.0003726,2]
[314007583,1707923465403,-812.61,0.0003726,2]
[314007584,1707923465413,-570.14,0.0003726,2]
[314007585,1707923465424,-500.0,0.0003726,2]
[314007586,1707923465435,-500.0,0.0003726,2]
[314007587,1707923465445,-553.03,0.0003726,2]
[314007588,1707923465456,-519.06,0.0003726,2]
[314007589,1707923465467,-500.0,0.0003726,2]
[314007590,1707923465477,-500.0,0.0003726,2]
[314007591,1707923465487,-1130.05,0.0003726,2]
[314007592,1707923465497,-733.41,0.0003726,2]
[314007593,1707923465507,-500.0,0.0003726,2]
[314007594,1707923465517,-674.48,0.0003726,2]
[314007595,1707923465527,-500.0,0.0003726,2]
[314007596,1707923465537,-500.0,0.0003726,2]
[314007597,1707923465548,-599.48,0.0003726,2]
[314007598,1707923465559,-699.45,0.0003726,2]
[314007599,1707923465569,-500.0,0.0003726,2]
[314007600,1707923465579,-513.16278751,0.0003726,2]
[314007601,1707923465590,-808.31,0.0003726,2]
[314007602,1707923465600,-647.83,0.0003726,2]
[314007603,1707923465611,-500.0,0.0003726,2]
[314007604,1707923465627,-500.0,0.0003726,2]
[314007605,1707923465637,-632.09955444,0.0003726,2]
[314007606,1707923465648,-1377.65,0.0003726,2]
[314007607,1707923465658,-734.76,0.0003726,2]
[314007608,1707923465670,-1574.35,0.0003726,2]
[314007609,1707923465680,-500.0,0.0003726,2]
[314007610,1707923465691,-1145.4,0.0003726,2]
[314007611,1707923465703,-1361.9,0.0003726,2]
[314007612,1707923465714,-500.0,0.0003726,2]
[314007613,1707923465725,-500.0,0.0003726,2]
[314007614,1707923465735,-500.0,0.0003726,2]
[314007615,1707923465746,-500.0,0.0003726,2]
[314007616,1707923465758,-500.0,0.0003726,2]
[314007617,1707923465769,-1000.98,0.0003726,2]
[314007618,1707923465780,-500.0,0.0003726,2]
[314007619,1707923465790,-940.65,0.0003726,2]
[314007620,1707923465801,-819.39,0.0003726,2]
[314007621,1707923465811,-500.0,0.0003726,2]
[314007622,1707923465822,-664.33,0.0003726,2]
[314007623,1707923465831,-500.0,0.0003726,2]
[314007624,1707923465841,-500.0,0.0003726,2]
[314007625,1707923465851,-500.0,0.0003726,2]
[314007626,1707923465864,-500.0,0.0003726,2]
[314007627,1707923465880,-500.0,0.0003726,2]
[314007628,1707923465891,-574.43,0.0003726,2]
[314007629,1707923465902,-582.92,0.0003726,2]
[314007630,1707923465913,-500.0,0.0003726,2]
[314007631,1707923465924,-709.41,0.0003726,2]
[314007632,1707923465935,-523.78,0.0003726,2]
[314007633,1707923465946,-584.12,0.0003726,2]